Cogmind - Beta 13 @@@ ROGUE MODE // 2024.04.03 @ 15:41:09 Player: Civin Result: Self-destructed Performance ------------- Evolutions (2) 1000 Regions Visited (3) 600 Robots Destroyed (20) 100 Value Destroyed (620) 620 Prototype IDs (0) 0 Alien Tech Used (0) 0 Bonus (0) 0 TOTAL SCORE: 2320 Bonus ------- None Cogmind --------- Core Integrity 518/550 Matter 42/300 Energy 100/100 System Corruption 12% Temperature Cool (0) Movement Walking (260) Ox2 Location -8/Materials Parts ------- > --- POWER (1) -------- (None) > --- PROPULSION (4) --- Aluminum Leg > --- UTILITY (3) ------ Large Storage Unit > --- WEAPON (3) ------- Rocket Launcher > --- INVENTORY (15) --- Light Ion Engine Light Ion Engine Aluminum Leg Improved Heat Sink Small Storage Unit Large Storage Unit Medium Laser Medium Laser Small Laser Particle Gun Light Assault Rifle Rocket Launcher Peak State ------------ > --- POWER ------------ Light Ion Engine > --- PROPULSION ------- Aluminum Leg Aluminum Leg Aluminum Leg Aluminum Leg > --- UTILITY ---------- Large Storage Unit > --- WEAPON ----------- Rocket Launcher Rocket Launcher Rocket Launcher > --- INVENTORY -------- Light Ion Engine Light Ion Engine Aluminum Leg Improved Heat Sink Small Storage Unit Large Storage Unit Medium Laser Medium Laser Small Laser Particle Gun Light Assault Rifle Rocket Launcher [Rating: 13] Favorites ----------- Power Light Ion Engine Engine Light Ion Engine Propulsion Aluminum Leg Leg Aluminum Leg Utility Small Storage Unit Storage Small Storage Unit Weapon Rocket Launcher Energy Gun Medium Laser Ballistic Gun Light Assault Rifle Launcher Rocket Launcher Build | -11 -10 -9 -8 ------- Run | Yrd Mat Mat Mat Slots Evolved 4 | . . 2 2 Power . | . . . . Propulsion 2 | . . 2 . Utility 1 | . . . 1 Weapon 1 | . . . 1 Parts Attached 18 | 6 5 5 2 Power 1 | 1 . . . Engine 1 | 1 . . . Core . | . . . . Reactor . | . . . . Propulsion 5 | 2 1 1 1 Treads . | . . . . Leg 5 | 2 1 1 1 Wheel . | . . . . Hover . | . . . . Flight . | . . . . Utility 2 | 1 . 1 . Device . | . . . . Storage 2 | 1 . 1 . Processor . | . . . . Hackware . | . . . . Protection . | . . . . Artifact . | . . . . Weapon 10 | 2 4 3 1 Energy Gun 3 | 2 1 . . Energy Cannon . | . . . . Ballistic Gun 2 | . 1 1 . Ballistic Cannon . | . . . . Launcher 5 | . 2 2 1 Special Weapon . | . . . . Impact Weapon . | . . . . Slashing Weapon . | . . . . Piercing Weapon . | . . . . Special Melee Weapon . | . . . . Unidentified Prototypes . | . . . . Parts Lost 6 | . . . 6 Power 1 | . . . 1 Propulsion 3 | . . . 3 Utility . | . . . . Weapon 2 | . . . 2 Highest Loss Streak 6 | . . . 6 To Critical Strikes . | . . . . Average Slot Usage (%) 80 | . 85 75 72 Engine 12 | . 14 11 7 Leg 29 | . 28 31 30 Storage 12 | . 14 11 9 Energy Gun 11 | . 16 6 . Ballistic Gun 2 | . 2 3 . Launcher 11 | . 8 12 25 Naked Turns . | . . . . Heaviest Build 35 | 11 14 31 35 Greatest Support 40 | 20 20 30 40 Greatest Overweight (x) 3 | . . 1 3 Average Overweight (x) . | . . . . Largest Inventory Capacity 15 | 8 8 15 15 Average Capacity 10 | 6 8 13 15 Most Carried 14 | 4 8 14 13 Average Carried 7 | 2 5 8 12 Final Capacity 15 | 8 8 15 15 Final Carried 14 | 2 8 14 12 Class Distribution -------------------- 92% | Mutant 4% | Gunner 3% | Bomber Dominant Class ---------------- Mutant | -10/Materials Mutant | -9/Materials Gunner | -8/Materials Resources | -11 -10 -9 -8 ----------- Run | Yrd Mat Mat Mat Matter Collected 432 | 235 104 53 40 Remotely . | . . . . Salvage Created 512 | . 170 201 141 Parts 38 | . 9 15 14 Haulers Intercepted . | . . . . Recyclers Shooed . | . . . . Parts Field Recycled . | . . . . Retrieved Matter . | . . . . Parts Self-Destructed . | . . . . Prevented . | . . . . Kills | -11 -10 -9 -8 ------- Run | Yrd Mat Mat Mat Combat Hostiles Destroyed 11 | . 4 5 2 Guns 2 | . 2 . . AOE 9 | . 2 5 2 Classes Destroyed 6 | . 3 2 1 Worker 2 | . 1 . 1 Tunneler 1 | . . 1 . Recycler 2 | . . 1 1 Watcher 4 | . 1 1 2 Grunt 10 | . 4 5 1 Sentry 1 | . . . 1 Best Kill Streak 8 | . 3 8 6 Combat Bots Only 5 | . 2 5 2 Max Kills in Single Turn 3 | . 2 3 2 Gunslinging . | . . . . Exploded 3 | . 1 3 1 Melee . | . . . . Uniques/NPCs Destroyed . | . . . . Combat | -11 -10 -9 -8 -------- Run | Yrd Mat Mat Mat Hostile Shots Fired 56 | . 13 8 35 Missed 18 | . 7 2 9 Damage Taken 588 | . 67 70 451 Core 76 | . 21 23 32 Absorbed by Shields . | . . . . Core Remaining (%) 95 | 100 91 94 . Volleys Fired 27 | . 13 9 5 Largest 3 | . 2 2 3 Hottest 99 | . 83 70 99 Shots Fired 55 | . 26 15 14 Gun 25 | . 18 7 . Cannon . | . . . . Launcher 30 | . 8 8 14 Special . | . . . . Kinetic 12 | . 7 5 . Thermal 13 | . 11 2 . Explosive 30 | . 8 8 14 Electromagnetic . | . . . . Robot Hit Streak 7 | . 6 6 7 Robot Miss Streak 5 | . 5 2 1 Penetration Max . | . . . . Secondary Targets . | . . . . Shots Hit Robots 24 | . 9 8 7 Core Hits 37 | . 12 13 12 Critical Kills . | . . . . Critical Parts Destroyed . | . . . . Critical Strikes . | . . . . Melee Attacks . | . . . . Impact . | . . . . Slashing . | . . . . Piercing . | . . . . Sneak Attacks . | . . . . Combat Hostiles . | . . . . Follow-up Attacks . | . . . . Damage Inflicted 1784 | . 413 668 703 Guns 103 | . 67 36 . Cannons . | . . . . Explosions 1681 | . 346 632 703 Melee . | . . . . Ramming . | . . . . Kinetic 42 | . 6 36 . Thermal 61 | . 61 . . Explosive 1628 | . 293 632 703 Electromagnetic 53 | . 53 . . Impact . | . . . . Slashing . | . . . . Piercing . | . . . . Highest Corruption 12 | . 1 1 12 Average Corruption 1 | . 1 1 6 Corruption Purged . | . . . . Corruption Blocked . | . . . . Overload Shots . | . . . . Overflow Damage 2 | . . . 2 Projectiles . | . . . . Explosions 2 | . . . 2 Melee . | . . . . Knockbacks . | . . . . Impact . | . . . . Kinetic . | . . . . Secondary . | . . . . Self-Inflicted Damage . | . . . . Shots . | . . . . Rammed . | . . . . Targets Rammed . | . . . . Kicked . | . . . . Crushed . | . . . . Highest Temperature 102 | . 102 24 96 Average Temperature 35 | . 36 9 52 Received Heat Transfer 228 | . 39 36 153 Siege Activations . | . . . . Robots Corrupted . | . . . . Combat Hostiles . | . . . . Parts Fried . | . . . . Impact Corruptions . | . . . . Robots Melted . | . . . . Combat Hostiles . | . . . . Parts Melted . | . . . . Heat Transferred 185 | . 185 . . Parts Sabotaged . | . . . . Parts Stolen . | . . . . Parts Stripped . | . . . . Power Chain Reactions . | . . . . Alert | -11 -10 -9 -8 ------- Run | Yrd Mat Mat Mat Peak Influence 313 | . 254 313 258 Initial 131 | . . 107 131 Average 134 | . 124 176 185 Maximum Alert Level 1 | . 1 1 1 Low Security (%) 74 | 100 77 65 60 Level 1 25 | . 22 34 39 Level 2 . | . . . . Level 3 . | . . . . Level 4 . | . . . . Level 5 . | . . . . High Security . | . . . . Max Security . | . . . . Squads Dispatched . | . . . . Investigation . | . . . . Extermination . | . . . . Reinforcement . | . . . . Assault . | . . . . Garrison . | . . . . Intercept . | . . . . Searches Triggered . | . . . . Construction Impeded . | . . . . Haulers Reinforced . | . . . . Active Scanning Responses . | . . . . Cargo Convoy Interrupts . | . . . . Stealth | -11 -10 -9 -8 --------- Run | Yrd Mat Mat Mat Distress Signals 4 | . . 2 2 Communications Jammed . | . . . . Distress Signals . | . . . . Times Spotted 23 | . 5 11 7 Peak Tracking Total 6 | . 3 4 6 Tactical Retreats . | . . . . Traps | -11 -10 -9 -8 ------- Run | Yrd Mat Mat Mat Traps Triggered 2 | . 1 1 . Indirectly . | . . . . Trap Hack Attempts . | . . . . Triggered . | . . . . Disarmed . | . . . . Reprogrammed . | . . . . Reused . | . . . . Traps Extracted . | . . . . Installed . | . . . . Triggered . | . . . . Machines | -11 -10 -9 -8 ---------- Run | Yrd Mat Mat Mat Machines Disabled 8 | . 6 1 1 Max in Single Turn 2 | . 2 1 1 Machines Repaired . | . . . . Machines Dismantled . | . . . . Machines Sabotaged . | . . . . Overloaded Fab Kills . | . . . . Hacking | -11 -10 -9 -8 --------- Run | Yrd Mat Mat Mat Machines Accessed 1 | . 1 . . Terminals 1 | . 1 . . Fabricators . | . . . . Repair Stations . | . . . . Recycling Units . | . . . . Scanalyzers . | . . . . Garrison Access . | . . . . Total Hacks 1 | . 1 . . Successful . | . . . . Failed 1 | . 1 . . Catastrophic . | . . . . Database Lockouts . | . . . . Manual 1 | . 1 . . Terminals 1 | . 1 . . Fabricators . | . . . . Repair Stations . | . . . . Recycling Units . | . . . . Scanalyzers . | . . . . Garrison Access . | . . . . Terminal Hacks . | . . . . Fabricator Hacks . | . . . . Repair Station Hacks . | . . . . Recycling Unit Hacks . | . . . . Scanalyzer . | . . . . Garrison Access Hacks . | . . . . Unauthorized Hacks . | . . . . Terminals . | . . . . Fabricators . | . . . . Repair Stations . | . . . . Recycling Units . | . . . . Scanalyzers . | . . . . Garrison Access . | . . . . Data Cores Recovered . | . . . . Used . | . . . . Hacking Detections . | . . . . Full Trace Events . | . . . . Feedback Events . | . . . . Feedback Blocked . | . . . . Robot Schematics Acquired . | . . . . Robots Built . | . . . . Authchips . | . . . . Time . | . . . . Total Robot Build Rating . | . . . . Part Schematics Acquired . | . . . . Parts Built . | . . . . Authchips . | . . . . Time . | . . . . Total Part Build Rating . | . . . . Parts Repaired . | . . . . Time . | . . . . Parts Recycled . | . . . . Recycled Matter . | . . . . Retrieved Matter . | . . . . Retrieved Components . | . . . . Parts Scanalyzed . | . . . . Part Schematics Acquired . | . . . . Parts Damaged . | . . . . Bothacking | -11 -10 -9 -8 ------------ Run | Yrd Mat Mat Mat Used RIF Installer . | . . . . Robots Hacked . | . . . . Non-combat . | . . . . Combat . | . . . . Robot Hacks Applied . | . . . . Relay Couplers Released . | . . . . Fabnet Peak Effective % . | . . . . Robots Rewired . | . . . . Allies Hacked . | . . . . Hacks Repelled . | . . . . Allies | -11 -10 -9 -8 -------- Run | Yrd Mat Mat Mat Total Allies . | . . . . Largest Group . | . . . . Highest-Rated Group . | . . . . Highest-Rated Ally . | . . . . Total Orders . | . . . . Ally Attacks . | . . . . Total Damage . | . . . . Kills . | . . . . Allies Corrupted . | . . . . Allies Melted . | . . . . Intel | -11 -10 -9 -8 ------- Run | Yrd Mat Mat Mat Robot Analysis Total . | . . . . Derelict Logs Recovered . | . . . . Drone Launches . | . . . . Drone Recoveries . | . . . . Exploration | -11 -10 -9 -8 ------------- Run | Yrd Mat Mat Mat Turns Passed 635 | 64 305 213 53 Spaces Moved 409 | 49 208 127 25 Core 8 | 8 . . . Treads . | . . . . Legs 401 | 41 208 127 25 Wheels . | . . . . Hover . | . . . . Flight . | . . . . Fastest Speed 50 | 50 120 120 120 Average Speed 125 | 108 120 138 136 Slowest Speed 330 | 120 120 190 330 Overloaded Moves . | . . . . Propulsion Burnouts . | . . . . Robots Hopped . | . . . . Cave-ins Triggered . | . . . . Exploration Rate (%) 15 | 3 36 16 7 Regions Visited 3 Branch Regions . Pre-discovered Areas . | . . . . Known Exits Taken . | . . . . Unknown Exits Taken 3 | 1 1 1 . Scrap Searched . | . . . . Spaces Dug . | . . . . Terrain Destroyed 205 | . 55 42 108 Melee . | . . . . Projectile . | . . . . AOE 205 | . 55 42 108 Terrain Rammed . | . . . . Walls Destroyed . | . . . . Machines Disabled . | . . . . Actions | -11 -10 -9 -8 --------- Run | Yrd Mat Mat Mat Total 477 | 58 238 149 32 Wait 3 | . 3 . . Move 406 | 48 207 126 25 Hop . | . . . . Pick Up 20 | 4 8 8 . Fast Attach 4 | 4 . . . Attach 5 | 2 . 1 2 Detach . | . . . . Swap 9 | . 5 4 . Drop 3 | . 2 1 . Fire 27 | . 13 9 5 Melee . | . . . . Ram . | . . . . Kick . | . . . . Crush . | . . . . Escape Stasis . | . . . . Rewire . | . . . . Trap . | . . . . Miscellaneous . | . . . . Route ------- -11/Scrapyard -10/Materials (discovered 2 exits: [*Mat] / [*Min]) -9/Materials -8/Materials History --------- Turn | Location | Event 19 | -11/Scrapyard | Discovered new exit (range 16) 65 | -11/Scrapyard | Entered Materials 169 | -10/Materials | Discovered new exit (range 13) 293 | -10/Materials | Discovered new exit (range 16) 318 | -10/Materials | Build established: Mutant 370 | -10/Materials | Entered another Materials area 370 | -9/Materials | Evolved 2 slots: Propulsion x2 562 | -9/Materials | Discovered new exit (range 11) 583 | -9/Materials | Entered another Materials area 583 | -8/Materials | Evolved 2 slots: Utility x1, Weapon x1 636 | -8/Materials | System corruption reached 10% 636 | -8/Materials | Self-destructed Last Messages --------------- K-01 Serf destroyed. W-25 Informer destroyed. Critical hit (Burn: +37). The unstable cave ceiling collapses. Lgt. Deuterium Engine crushed. The unstable cave ceiling collapses. Aluminum Leg destroyed. System corrupted by crushing effect (+5). Y-45 Defender destroyed. The unstable cave ceiling collapses. Rocket Launcher destroyed. Aluminum Leg destroyed. System corrupted by crushing effect (+1). The unstable cave ceiling collapses. Lgt. Ion Engine destroyed. System corrupted by crushing effect (+1). Knocked back. Electrolysis Chamber disabled. Rocket Launcher destroyed. System corrupted by crushing effect (+5). Map ----- +----------------------------------------------------+ | | | | | | | | | | | | | | | ?????????????????????????????????????????????????? | | ?????????????????????????????????????????????????? | | ?????????????????????????????????????????????????? | | ?????????????????????????????????????????????????? | | ?????????????????????????????????????????????????? | | ?????????????????????????????????????????????????? | | ?????????????????????????????????????????????????? | | ?????????????????????????????????????????????????? | | ?????????????????????????????????????????????????? | | ?????????????????????????????????????????????????? | | ???????????????#######???????????????????????????? | | ????????######## #???????????????????????????? | | ????????# #???????????????????????????? | | ????????# #???????????????? ????????? | | ????????# #?????????????? ????????? | | ????????######## #????????????? #???????? | | ???????????????## ##?#####????? #???????? | | ????????????????# #?## # ##### #???????? | | ????????????????# ### @ k#????????? | | ?????????????" b! # #???????? | | ???????????? = = #???????? | | ??????????? ! ! =%! Y ??????? | | ??????????? g [ * ???????? | | ???????????? # #???????? | | ???????????? [ * ## # # #???????? | | ???????????? # #?##### # ????????? | | ????????????? + ####???????#####? # ????????? | | ????????????? # ??????????????????#?????????? | | ????????????? # ????????????????????????????? | | ??????????? ?# ????????????????????????????? | | ???????????####?#####????????????????????????????? | | ?????????????????????????????????????????????????? | | ?????????????????????????????????????????????????? | | ?????????????????????????????????????????????????? | | ?????????????????????????????????????????????????? | | ?????????????????????????????????????????????????? | | ?????????????????????????????????????????????????? | | ?????????????????????????????????????????????????? | | ?????????????????????????????????????????????????? | | ?????????????????????????????????????????????????? | | ?????????????????????????????????????????????????? | | ?????????????????????????????????????????????????? | | ?????????????????????????????????????????????????? | +----------------------------------------------------+ Best States ------------- Heat Dissipation 31 Energy Generation 10 Energy Capacity 125 Matter Stores 291 Matter Capacity 300 Sight Range 16 Terrain Scan Density 10 Evasion (%) 55 Item Schematics ----------------- None Robot Schematics ------------------ None Fabricated ------------ Nothing Alien Tech Used ----------------- None Achievements -------------- None Challenges ------------ None Game ------ Seed WeaponsRocketShredder Manual? 0 Play Time 00:12:07 Cumulative 2.3 hours Start 2024.04.03 @ 15:30:18 End 2024.04.03 @ 15:41:09 Sessions 1 Manual Loads 0 Difficulty Rogue Special Mode None Game No. 6 Rogue 4 Adventurer 2 Explorer 0 Win Type - Total 0 Types 0/0/0/0/0/0/0/0/0 Lore% 1 Gallery% 6 Achievement% 7 Wizard Run 0 Options --------- Layout 2 ASCII 0 Keyboard 0 Movement Numpad Keybinds 0 Fullscreen 1 Font 24/Smallcaps Map View 50x44 Zoom Use 0% Tactical HUD 0 Map Filters NONE Filters NONE Steam 1 RUN: f6daab84-02ca-4c19-b276-4e469fa1824f